Cogmind - Beta 9.6 @@@ ROGUE MODE // 2020.05.20 @ 20:43:27 Player: Overmind Result: Self-destructed Performance ------------- Evolutions (1) 500 Regions Visited (4) 800 Robots Destroyed (41) 205 Value Destroyed (1151) 1151 Prototype IDs (3) 60 Alien Tech Used (0) 0 Bonus (16) 16 TOTAL SCORE: 2732 Bonus ------- Follower Combat Kills 33 Friendly Fire -17 Cogmind --------- Core Integrity 40/400 Matter 185/300 Energy 100/100 System Corruption 10% Temperature Cool (0) Movement Hovering (360) Ox5 Location -9/Storage Parts ------- > --- POWER (1) -------- (None) > --- PROPULSION (3) --- Hover Unit > --- UTILITY (3) ------ High-capacity Storage Unit > --- WEAPON (2) ------- Grenade Launcher > --- INVENTORY (12) --- Ion Engine Advanced Visual Processing Unit Assault Rifle Peak State ------------ > --- POWER ------------ Heavy Ion Engine > --- PROPULSION ------- Light Treads Light Treads Light Treads > --- UTILITY ---------- High-capacity Storage Unit Advanced Visual Processing Unit Improved Light Armor Plating > --- WEAPON ----------- Heavy Particle Gun Heavy Particle Gun > --- INVENTORY -------- Ion Engine Improved Ion Engine Hover Unit Advanced Visual Processing Unit Particle Gun Assault Rifle Heavy Assault Rifle Grenade Launcher [Rating: 22] Favorites ----------- Power Ion Engine Engine Ion Engine Propulsion Light Treads Treads Light Treads Wheel Compact Wheel Hover Unit Hover Unit Flight Unit Flight Unit Utility High-capacity Storage Unit Device Sensor Array Storage High-capacity Storage Unit Processor Advanced Visual Processing Unit Protection Improved Light Armor Plating Weapon Heavy Particle Gun Energy Gun Heavy Particle Gun Ballistic Gun Assault Rifle Launcher Grenade Launcher Build | -11 -10 -10 -9 -9 ------- Run | Scr Mat Min Mat Sto Slots Evolved 2 | . . . 2 . Power . | . . . . . Propulsion 1 | . . . 1 . Utility 1 | . . . 1 . Weapon . | . . . . . Parts Attached 40 | 5 2 11 15 7 Power 8 | 1 . 2 3 2 Engine 8 | 1 . 2 3 2 Core . | . . . . . Reactor . | . . . . . Propulsion 11 | 2 . 4 3 2 Treads 4 | . . . 3 1 Leg . | . . . . . Wheel 4 | 2 . 2 . . Hover 1 | . . . . 1 Flight 2 | . . 2 . . Utility 5 | . 2 . 3 . Device 1 | . . . 1 . Storage 2 | . 2 . . . Processor 1 | . . . 1 . Hackware . | . . . . . Protection 1 | . . . 1 . Artifact . | . . . . . Weapon 16 | 2 . 5 6 3 Energy Gun 7 | 1 . 1 4 1 Energy Cannon . | . . . . . Ballistic Gun 7 | 1 . 3 2 1 Ballistic Cannon . | . . . . . Launcher 2 | . . 1 . 1 Special Weapon . | . . . . . Impact Weapon . | . . . . . Slashing Weapon . | . . . . . Piercing Weapon . | . . . . . Special Melee Weapon . | . . . . . Unidentified Prototypes 3 | . . . 3 . Parts Lost 20 | . 1 3 4 12 Power 4 | . . 1 1 2 Propulsion 6 | . 1 . 1 4 Utility 2 | . . . . 2 Weapon 8 | . . 2 2 4 Highest Loss Streak 8 | . 1 1 1 8 Average Slot Usage (%) 84 | . 93 85 93 70 Engine 10 | . 14 7 10 10 Treads 14 | . . . 23 20 Wheel 10 | . 25 24 7 . Device 2 | . . . 1 6 Storage 18 | . 24 28 17 11 Processor 3 | . . . 4 5 Protection 2 | . . . 6 . Energy Gun 14 | . 14 8 19 12 Ballistic Gun 6 | . 14 13 2 3 Naked Turns . | . . . . . Heaviest Build 52 | 9 45 46 52 47 Greatest Support 60 | 32 32 26 60 60 Greatest Overweight (x) 13 | . 2 2 3 13 Average Overweight (x) . | . . 1 . . Largest Inventory Capacity 12 | 4 12 12 12 12 Average Capacity 11 | 4 10 12 12 12 Most Carried 10 | 2 2 6 10 8 Average Carried 4 | . . 3 6 6 Final Capacity 12 | 4 12 12 12 12 Final Carried 8 | . 1 3 8 3 Class Distribution -------------------- 87% | Mutant 12% | Scavenger-Mutant Dominant Class ---------------- Mutant | -10/Materials Mutant | -10/Mines Mutant | -9/Materials Mutant | -9/Storage Resources | -11 -10 -10 -9 -9 ----------- Run | Scr Mat Min Mat Sto Matter Collected 682 | 262 42 162 143 73 Remotely . | . . . . . Salvage Created 1516 | 83 95 267 523 548 Parts 96 | 6 6 31 26 27 Haulers Intercepted 2 | . . . 2 . Recyclers Shooed 1 | . . . . 1 Parts Field Recycled . | . . . . . Retrieved Matter . | . . . . . Parts Self-Destructed . | . . . . . Prevented . | . . . . . Kills | -11 -10 -10 -9 -9 ------- Run | Scr Mat Min Mat Sto Combat Hostiles Destroyed 32 | . 2 11 8 11 Guns 28 | . 2 8 8 10 AOE 4 | . . 3 . 1 Classes Destroyed 9 | 2 1 1 4 1 Worker 2 | . . . 1 1 Tunneler 1 | 1 . . . . Hauler 2 | . . . 2 . Recycler 2 | 1 . . . 1 Watcher 2 | . . . 1 1 Swarmer 6 | . . 6 . . Grunt 19 | . 2 5 5 7 Brawler 1 | . . . . 1 Sentry 6 | . . . 3 3 Best Kill Streak 6 | 2 2 5 6 5 Combat Bots Only 5 | . 2 5 2 4 Max Kills in Single Turn 3 | 1 1 3 1 1 Gunslinging 1 | . . 1 . . Exploded 3 | . . 3 . 1 Melee . | . . . . . Uniques/NPCs Destroyed . | . . . . . Combat | -11 -10 -10 -9 -9 -------- Run | Scr Mat Min Mat Sto Damage Taken 2163 | . 165 297 354 1347 Core 432 | . 44 28 55 305 Absorbed by Shields . | . . . . . Core Remaining (%) 85 | 100 . 71 . . Volleys Fired 119 | 4 9 22 33 51 Largest 2 | 2 2 2 2 2 Hottest 110 | 60 60 85 110 110 Shots Fired 204 | 8 18 41 63 74 Gun 197 | 8 18 40 63 68 Cannon . | . . . . . Launcher 7 | . . 1 . 6 Special . | . . . . . Kinetic 66 | 4 9 30 1 22 Thermal 97 | . . 10 41 46 Explosive 7 | . . 1 . 6 Electromagnetic 34 | 4 9 . 21 . Robot Hit Streak 15 | 5 6 13 8 15 Robot Miss Streak 4 | 1 2 1 4 2 Penetration Max . | . . . . . Secondary Targets 5 | . 1 2 . 2 Max Gunslinging Chain 1 | . 1 1 . 1 Shots Hit Robots 143 | 5 11 32 38 57 Core Hits 67 | 2 3 18 18 26 Critical Hits . | . . . . . Critical Kills . | . . . . . Critical Parts Destroyed . | . . . . . Melee Attacks . | . . . . . Impact . | . . . . . Slashing . | . . . . . Piercing . | . . . . . Sneak Attacks . | . . . . . Combat Hostiles . | . . . . . Follow-up Attacks . | . . . . . Damage Inflicted 2505 | 68 93 519 689 1136 Guns 2144 | 68 93 369 657 957 Cannons . | . . . . . Explosions 361 | . . 150 32 179 Melee . | . . . . . Ramming . | . . . . . Kinetic 582 | 23 41 239 12 267 Thermal 1286 | . . 130 466 690 Explosive 329 | . . 150 . 179 Electromagnetic 308 | 45 52 . 211 . Impact . | . . . . . Slashing . | . . . . . Piercing . | . . . . . Highest Corruption 10 | . . . . 10 Average Corruption 9 | . . . . 9 Corruption Purged . | . . . . . Effects 13 | . . . . 13 Message Errors 2 | . . . . 2 Matter Fused 3 | . . . . 3 Energy Discharges 3 | . . . . 3 Misfires 1 | . . . . 1 Alerts 1 | . . . . 1 Misdirections 1 | . . . . 1 Targeting Errors 1 | . . . . 1 Weapon Failures 1 | . . . . 1 Overload Shots . | . . . . . Overflow Damage . | . . . . . Projectiles . | . . . . . Explosions . | . . . . . Melee . | . . . . . Knockbacks . | . . . . . Impact . | . . . . . Kinetic . | . . . . . Secondary . | . . . . . Self-Inflicted Damage 23 | . . 23 . . Shots 1 | . . 1 . . Rammed . | . . . . . Targets Rammed . | . . . . . Kicked . | . . . . . Crushed . | . . . . . Highest Temperature 297 | . 64 204 297 279 Average Temperature 109 | . 37 90 129 104 Received Heat Transfer 948 | . 90 123 141 594 Effects 2 | . . . 2 . Energy Bleed 2 | . . . 2 . Siege Activations . | . . . . . Robots Corrupted . | . . . . . Combat Hostiles . | . . . . . Parts Fried . | . . . . . Impact Corruptions . | . . . . . Robots Melted . | . . . . . Combat Hostiles . | . . . . . Parts Melted 6 | . . . 2 4 Heat Transferred 2603 | . . 296 975 1332 Parts Sabotaged . | . . . . . Parts Stolen . | . . . . . Parts Stripped . | . . . . . Power Chain Reactions 1 | . . . 1 . Missiles Intercepted . | . . . . . Alert | -11 -10 -10 -9 -9 ------- Run | Scr Mat Min Mat Sto Peak Influence 317 | 10 51 264 317 309 Average Influence 164 | 2 12 191 214 187 Maximum Alert Level 1 | . . 1 1 1 Low Security (%) 55 | 100 100 38 38 59 Level 1 44 | . . 61 61 40 Level 2 . | . . . . . Level 3 . | . . . . . Level 4 . | . . . . . Level 5 . | . . . . . High Security . | . . . . . Max Security . | . . . . . Squads Dispatched 1 | . . . 1 . Investigation . | . . . . . Extermination . | . . . . . Reinforcement 1 | . . . 1 . Assault . | . . . . . Garrison . | . . . . . Intercept . | . . . . . Construction Impeded . | . . . . . Haulers Reinforced . | . . . . . Stealth | -11 -10 -10 -9 -9 --------- Run | Scr Mat Min Mat Sto Distress Signals 5 | . 2 . 1 2 Communications Jammed . | . . . . . Distress Signals . | . . . . . Times Spotted 50 | . 6 11 17 16 Peak Tracking Total 6 | . 4 3 3 6 Tactical Retreats 3 | . . . . 3 Traps | -11 -10 -10 -9 -9 ------- Run | Scr Mat Min Mat Sto Traps Triggered 2 | . . . 1 1 Indirectly . | . . . . . Trap Hack Attempts . | . . . . . Triggered . | . . . . . Disarmed . | . . . . . Reprogrammed . | . . . . . Reused . | . . . . . Traps Extracted . | . . . . . Installed . | . . . . . Triggered . | . . . . . Machines | -11 -10 -10 -9 -9 ---------- Run | Scr Mat Min Mat Sto Machines Disabled 4 | . 1 1 1 1 Max in Single Turn 1 | . 1 1 1 1 Machines Sabotaged . | . . . . . Garrisons Compromised . | . . . . . Overloaded Fab Kills . | . . . . . Fab Network Shutdowns . | . . . . . Hacking | -11 -10 -10 -9 -9 --------- Run | Scr Mat Min Mat Sto Machines Accessed 4 | . 2 . . 2 Terminals 3 | . 2 . . 1 Fabricators . | . . . . . Repair Stations . | . . . . . Recycling Units 1 | . . . . 1 Scanalyzers . | . . . . . Garrison Access . | . . . . . Total Hacks 4 | . 2 . . 2 Successful 4 | . 2 . . 2 Failed . | . . . . . Catastrophic . | . . . . . Database Lockouts . | . . . . . Manual . | . . . . . Terminals 3 | . 2 . . 1 Fabricators . | . . . . . Repair Stations . | . . . . . Recycling Units 1 | . . . . 1 Scanalyzers . | . . . . . Garrison Access . | . . . . . Terminal Hacks 3 | . 2 . . 1 Record 1 | . . . . 1 Locate Traps 1 | . 1 . . . Zone Layout 1 | . 1 . . . Fabricator Hacks . | . . . . . Repair Station Hacks . | . . . . . Recycling Unit Hacks 1 | . . . . 1 Report Inventory 1 | . . . . 1 Scanalyzer . | . . . . . Garrison Access Hacks . | . . . . . Unauthorized Hacks . | . . . . . Terminals . | . . . . . Fabricators . | . . . . . Repair Stations . | . . . . . Recycling Units . | . . . . . Scanalyzers . | . . . . . Garrison Access . | . . . . . Data Cores Recovered . | . . . . . Used . | . . . . . Hacking Detections 2 | . . . . 2 Full Trace Events . | . . . . . Feedback Events . | . . . . . Feedback Blocked . | . . . . . Robot Schematics Acquired . | . . . . . Robots Built . | . . . . . Matter . | . . . . . Time . | . . . . . Total Robot Build Rating . | . . . . . Part Schematics Acquired . | . . . . . Parts Built . | . . . . . Matter . | . . . . . Time . | . . . . . Total Part Build Rating . | . . . . . Parts Repaired . | . . . . . Time . | . . . . . Parts Recycled . | . . . . . Recycled Matter . | . . . . . Retrieved Matter . | . . . . . Retrieved Components . | . . . . . Parts Scanalyzed . | . . . . . Part Schematics Acquired . | . . . . . Parts Damaged . | . . . . . Bothacking | -11 -10 -10 -9 -9 ------------ Run | Scr Mat Min Mat Sto Used RIF Installer . | . . . . . Robots Hacked . | . . . . . Non-combat . | . . . . . Combat . | . . . . . Robot Hacks Applied . | . . . . . Relay Couplers Released . | . . . . . Robots Rewired . | . . . . . Allies Hacked . | . . . . . Hacks Repelled . | . . . . . Allies | -11 -10 -10 -9 -9 -------- Run | Scr Mat Min Mat Sto Total Allies 1 | . . 1 . . Largest Group 1 | . . 1 1 . Highest-Rated Group 31 | . . 31 31 . Highest-Rated Ally 31 | . . 31 31 . Total Orders . | . . . . . Ally Attacks 5 | . . . 5 . Total Damage 106 | . . . 106 . Kills 1 | . . . 1 . Allies Corrupted . | . . . . . Allies Melted . | . . . . . Intel | -11 -10 -10 -9 -9 ------- Run | Scr Mat Min Mat Sto Robot Analysis Total . | . . . . . Derelict Logs Recovered . | . . . . . Drone Launches . | . . . . . Drone Recoveries . | . . . . . Exploration | -11 -10 -10 -9 -9 ------------- Run | Scr Mat Min Mat Sto Turns Passed 1778 | 90 239 320 605 524 Spaces Moved 980 | 71 184 222 318 185 Core 14 | 6 . . . 8 Treads 376 | . . . 201 175 Legs . | . . . . . Wheels 588 | 65 184 222 117 . Hover 2 | . . . . 2 Flight . | . . . . . Fastest Speed 50 | 50 100 100 100 160 Average Speed 133 | 95 109 103 142 192 Slowest Speed 700 | 100 120 120 180 700 Overloaded Moves . | . . . . . Propulsion Burnouts . | . . . . . Robots Hopped . | . . . . . Cave-ins Triggered . | . . . . . Exploration Rate (%) 23 | 6 26 32 24 28 Regions Visited 4 Branch Regions 2 Pre-discovered Areas . | . . . . . Known Exits Taken . | . . . . . Unknown Exits Taken 4 | 1 1 1 1 . Scrap Searched 1 | . . 1 . . Spaces Dug . | . . . . . Terrain Destroyed 22 | . . 3 . 19 Melee . | . . . . . Projectile . | . . . . . AOE 22 | . . 3 . 19 Actions | -11 -10 -10 -9 -9 --------- Run | Scr Mat Min Mat Sto Total 1259 | 84 204 279 415 277 Wait 68 | . 7 12 16 33 Move 976 | 70 183 221 317 185 Hop . | . . . . . Pick Up 34 | 5 3 6 19 1 Fast Attach . | . . . . . Attach 39 | 5 2 11 15 6 Detach 15 | . . 7 8 . Swap 1 | . . . . 1 Drop 7 | . . . 7 . Fire 119 | 4 9 22 33 51 Melee . | . . . . . Ram . | . . . . . Kick . | . . . . . Crush . | . . . . . Escape Stasis . | . . . . . Rewire . | . . . . . Trap . | . . . . . Miscellaneous . | . . . . . Route ------- -11/Scrapyard -10/Materials -10/Mines -9/Materials -9/Storage History --------- Turn | Location | Event 5 | -11/Scrapyard | Discovered new exit (range 16) 91 | -11/Scrapyard | Entered Materials 249 | -10/Materials | Discovered new exit (range 16) 318 | -10/Materials | Build established: Mutant 330 | -10/Materials | Entered Mines 473 | -10/Mines | Discovered new exit (range 8) 555 | -10/Mines | Escorted by a lone wolf Derelict 650 | -10/Mines | Entered Materials 650 | -9/Materials | Accompanied by 1 ally 650 | -9/Materials | Evolved 2 slots: Propulsion x1, Utility x1 884 | -9/Materials | Discovered new exit (range 11) 1255 | -9/Materials | Entered Storage 1532 | -9/Storage | System corruption reached 10% 1538 | -9/Storage | Core integrity fell below 50% 1584 | -9/Storage | Lost 8 parts (1p3n2u2w) 1702 | -9/Storage | Core integrity fell below 20% 1779 | -9/Storage | Self-destructed Last Messages --------------- 01693_ Y5HJKW P9PQ8BIVTXY2PG 01702_ System corrupted: Particle Gun targeting data glitched. 01704_ Y-45 Defender destroyed. 01723_ R-06 Scavenger collects Heat Sink. 01726_ R-06 Scavenger collects Hvy. Assault Rifle. 01729_ System corrupted: Matter fused (-6). 01731_ R-06 Scavenger collects Heat Sink. 01751_ R-06 Scavenger inserts Heat Sink into recycling unit. 01754_ R-06 Scavenger inserts Hvy. Assault Rifle into recycling unit. 01755_ Recycling unit begins recycling process. 01756_ System corrupted: Energy discharge (-97). 01756_ Particle Gun destroyed. 01757_ R-06 Scavenger inserts Heat Sink into recycling unit. 01762_ R-06 Scavenger destroyed. 01763_ The unstable cave ceiling collapses. 01763_ Com. Wheel crushed. 01764_ Ion Engine destroyed. 01768_ Y-45 Defender destroyed. 01772_ System corrupted: IFF burst signal emitted. 01774_ U-05 Engineer builds a Wall. Map ----- +----------------------------------------------------+ | ?????????????????????????????????????????????? | | ?????????????????????????????????????????????? | | ?????????????????????????????????????????????? | | ??????????????????????????? ???????????????? | | ??????????????????????????# ???????????????? | | ?????????????????????????? ???????????????? | | ??????????????????????????# ???????????????? | | ??????????????????????????# ????????????#### | | ??????????????????????????# ????????????# | | ??????????????????????????# "???????????# | | ??????????????????????????# T???????????# # | | ??????????????????????????# "???????????# # | | ??????????????????????????+ #???????????/ # | | ??????????????????????????# #???????????# # | | ??????????????????????????# #???????????# # | | ??????????????????????????# #???????????# # | | ??????????????????????????# #???????????# # | | ??????????????????????????# ############# # | | ?????????########?????????# # / # | | ?????????# #?????????# # """ #### # | | ?????????# """ #??????#### # """ #??# # | | ?????????# """ #????## # # #% """ % #### # | | ?????????# """ #????#""" #r % """ %/ % % | | ?????????# ######"Y" # % "" % #####+# | | ?????????# """ # # ## | | ?????????# """ %+ @ % # % ## | | ????????# """ # ## | | ????????## #+### ########### """ | | ?????????# """ #= ##?????????# """ | | ?????????# """ # ####??????????# """ | | ?????????# """ # #?????????????# | | ?????????# # % #?????????????###### | | ?????????######## #??????????????????? | | ????????????????# ! #??????????????????? | | ????????????????# ! #??????????????????? | | ????????????????# ! #??????????????????? | | ????????????????###########??????????????????? | | ?????????????????????????????????????????????? | | ?????????????????????????????????????????????? | | ?????????????????????????????????????????????? | | ?????????????????????????????????????????????? | | ?????????????????????????????????????????????? | | ?????????????????????????????????????????????? | | ?????????????????????????????????????????????? | | ?????????????????????????????????????????????? | | | | | | | | | | | +----------------------------------------------------+ Best States ------------- Heat Dissipation 28 Energy Generation 14 Energy Capacity 665 Matter Stores 300 Matter Capacity 300 Sight Range 20 Robot Scan Range 10 Terrain Scan Density 10 Armor Coverage 150 Evasion (%) 40 Recoil Reduction 3 Item Schematics ----------------- None Robot Schematics ------------------ None Fabricated ------------ Nothing Alien Tech Used ----------------- None Achievements -------------- None Challenges ------------ None Game ------ Seed BoreExplosiveGenerator Manual? 0 Play Time 00:23:51 Cumulative 10.0 hours Start 2020.05.20 @ 20:22:14 End 2020.05.20 @ 20:43:27 Sessions 1 Manual Loads 0 Difficulty Rogue Special Mode None Game No. 19 Rogue 3 Adventurer 16 Explorer 0 Win Type - Total 0 Types 0/0/0/0/0/0/0 Lore% 7 Gallery% 17 Achievement% 14 Wizard Run 0 Options --------- ASCII 0 Keyboard 1 Movement Arrows Keybinds 0 Fullscreen 2 Font 18/CogNarrow Map View 76x50 Tactical HUD 1 Map Filters NONE Filters NONE Steam 0 RUN: 7e7704be-c761-404e-9842-fc71d053d2e5